Cogmind - Beta 17 @@@ ROGUE MODE // 2026.07.28 @ 14:27:21 Player: 4R-ZE3 Result: Destroyed by X-62 Marksman with Gauss Rifle Performance ------------- Evolutions (2) 1000 Regions Visited (5) 1000 Robots Destroyed (32) 160 Value Destroyed (984) 984 Prototype IDs (0) 0 Alien Tech Used (0) 0 Bonus (0) 0 TOTAL SCORE: 3144 Bonus ------- None Cogmind --------- Core Integrity 0/550 Matter 174/300 Energy 160/160 System Corruption 0% Temperature Cool (0) Movement Walking (120) Location -8/Materials Parts ------- > --- POWER (1) -------- Light Nuclear Core > --- PROPULSION (4) --- Aluminum Leg Aluminum Leg Improved Carbon-fiber Leg > --- UTILITY (4) ------ Large Storage Unit Core Analyzer > --- WEAPON (2) ------- Hammer > --- INVENTORY (15) --- Light Nuclear Core Light Nuclear Core Improved Heat Sink Improved Cooling System Medium Storage Unit Improved Terrain Scan Processor Improved Light Armor Plating Hacking Suite Peak State ------------ > --- POWER ------------ Improved Ion Engine > --- PROPULSION ------- Light Treads Light Treads Light Treads Light Treads > --- UTILITY ---------- Improved Heat Sink Large Storage Unit Core Analyzer Armor Integrity Analyzer > --- WEAPON ----------- Light Assault Rifle Minigun > --- INVENTORY -------- Light Nuclear Core Light Nuclear Core Light Treads Aluminum Leg Aluminum Leg Improved Heat Sink Improved Cooling System Medium Storage Unit Improved Terrain Scan Processor Hacking Suite Assault Rifle Light Assault Rifle Hammer [Rating: 24] Favorites ----------- Power Light Ion Engine Engine Light Ion Engine Power Core Light Nuclear Core Propulsion Light Treads Treads Light Treads Leg Aluminum Leg Utility Large Storage Unit Device Improved Heat Sink Storage Large Storage Unit Processor Targeting Computer Protection Light Armor Plating Weapon Assault Rifle Ballistic Gun Assault Rifle Impact Weapon Hammer Build | -11 -10 -10 -10 -9 -8 ------- Run | Yrd Mat Min Exi Min Mat Slots Evolved 4 | . . . . . 4 Power . | . . . . . . Propulsion 2 | . . . . . 2 Utility 2 | . . . . . 2 Weapon . | . . . . . . Parts Attached 34 | 6 4 . . 2 22 Power 5 | 1 1 . . 1 2 Engine 4 | 1 1 . . 1 1 Core 1 | . . . . . 1 Reactor . | . . . . . . Propulsion 12 | 2 . . . . 10 Treads 8 | 2 . . . . 6 Leg 4 | . . . . . 4 Wheel . | . . . . . . Hover . | . . . . . . Flight . | . . . . . . Utility 8 | 1 3 . . . 4 Device 1 | . . . . . 1 Storage 3 | 1 2 . . . . Processor 3 | . 1 . . . 2 Hackware . | . . . . . . Protection 1 | . . . . . 1 Artifact . | . . . . . . Weapon 9 | 2 . . . 1 6 Energy Gun . | . . . . . . Energy Cannon . | . . . . . . Ballistic Gun 8 | 2 . . . 1 5 Ballistic Cannon . | . . . . . . Launcher . | . . . . . . Special Weapon . | . . . . . . Impact Weapon 1 | . . . . . 1 Slashing Weapon . | . . . . . . Piercing Weapon . | . . . . . . Special Melee Weapon . | . . . . . . Unidentified Prototypes . | . . . . . . Parts Lost 23 | . 1 . . 2 20 Power 4 | . 1 . . 1 2 Propulsion 9 | . . . . . 9 Utility 2 | . . . . . 2 Weapon 8 | . . . . 1 7 Highest Loss Streak 13 | . 1 . . 2 13 To Critical Strikes . | . . . . . . Average Backups 9 | 1 6 14 14 13 11 Power 1 | . 1 1 1 . 1 Propulsion 3 | . 2 7 7 7 3 Utility 2 | . . 1 1 1 4 Weapon 2 | . 2 5 5 4 2 Tool/Special . | . . . . . . Unused Backups 7 | . . . . . 7 Power 2 | . . . . . 2 Propulsion . | . . . . . . Utility 5 | . . . . . 5 Weapon . | . . . . . . Tool/Special . | . . . . . . Average Slot Usage (%) 90 | . 91 100 100 100 87 Engine 11 | . 13 14 14 14 8 Treads 28 | . 28 28 28 28 28 Device 2 | . . . . . 6 Storage 11 | . 14 14 14 14 9 Processor 10 | . 6 14 14 14 13 Ballistic Gun 22 | . 28 28 28 28 16 Peak Build Rating 24 | 6 8 8 8 8 24 Average Rating 11 | 4 6 8 8 7 17 On Entrance 6 | . 6 8 8 8 8 Avg Prop Armor Cover (%) . | . . . . . . Naked Turns . | . . . . . . Heaviest Build 34 | 12 29 29 29 29 34 Greatest Support 80 | 40 40 40 40 40 80 Greatest Overweight (x) 1 | 1 . . . . 1 Average Overweight (x) . | . . . . . . Largest Inventory Capacity 15 | 8 15 15 15 15 15 Average Capacity 12 | 7 9 15 15 15 15 Most Carried 14 | 3 14 14 14 14 14 Average Carried 9 | 1 6 14 14 13 11 Final Capacity 15 | 8 15 15 15 15 15 Final Carried 14 | 3 14 14 14 13 8 Class Distribution -------------------- 70% | Mutant 29% | Scavenger-Mutant Dominant Class ---------------- Mutant | -10/Materials Mutant | -10/Mines Mutant | -10/Exiles Mutant | -9/Mines Scavenger-Mutant | -8/Materials Resources | -11 -10 -10 -10 -9 -8 ----------- Run | Yrd Mat Min Exi Min Mat Matter Collected 842 | 189 304 . . 58 291 Remotely . | . . . . . . Salvage Created 1132 | . 413 . . 86 633 Parts 79 | . 31 . . 5 43 Haulers Intercepted 1 | . . . . . 1 Recyclers Shooed . | . . . . . . Parts Field Recycled . | . . . . . . Retrieved Matter . | . . . . . . Parts Self-Destructed . | . . . . . . Prevented . | . . . . . . Parts Restored . | . . . . . . Kills | -11 -10 -10 -10 -9 -8 ------- Run | Yrd Mat Min Exi Min Mat Combat Hostiles Destroyed 30 | . 12 . . 2 16 Guns 30 | . 12 . . 2 16 Classes Destroyed 6 | . 3 . . . 3 Hauler 1 | . . . . . 1 Operator 1 | . 1 . . . . Swarmer 10 | . 3 . . . 7 Grunt 16 | . 9 . . 2 5 Sentry 1 | . . . . . 1 Specialist 3 | . . . . . 3 Best Kill Streak 5 | . 3 . . 2 5 Combat Bots Only 5 | . 3 . . 2 5 Max Kills in Single Turn 1 | . 1 . . 1 1 Gunslinging . | . . . . . . Exploded . | . . . . . . Melee . | . . . . . . Uniques/NPCs Destroyed . | . . . . . . Combat | -11 -10 -10 -10 -9 -8 -------- Run | Yrd Mat Min Exi Min Mat Hostile Shots Fired 321 | . 62 . . 14 245 Missed 72 | . 17 . . 6 49 Hits 249 | . 45 . . 8 196 Projectile 249 | . 45 . . 8 196 Critical Strikes 7 | . . . . 1 6 Damage Taken 3431 | . 470 . . 99 2862 Core 616 | . 56 . . 10 550 Absorbed by Shields . | . . . . . . Core Remaining (%) 86 | 100 . . . 73 . Volleys Fired 100 | . 33 . . 8 59 Largest 2 | . 2 . . 2 2 Hottest 45 | . 40 . . 40 45 Shots Fired 199 | . 66 . . 16 117 Gun 199 | . 66 . . 16 117 Cannon . | . . . . . . Launcher . | . . . . . . Special . | . . . . . . Kinetic 199 | . 66 . . 16 117 Thermal . | . . . . . . Explosive . | . . . . . . Electromagnetic . | . . . . . . Robot Hit Streak 18 | . 8 . . 3 18 Robot Miss Streak 4 | . 4 . . 2 4 Penetration Max . | . . . . . . Secondary Targets 7 | . 3 . . . 4 Max Gunslinging Chain 1 | . 1 . . . 1 Shots Hit Robots 138 | . 41 . . 10 87 Core Hits 68 | . 22 . . 5 41 Critical Kills . | . . . . . . Critical Parts Destroyed 1 | . . . . . 1 Critical Strikes 1 | . . . . . 1 Destroy 1 | . . . . . 1 Melee Attacks 3 | . . . . . 3 Impact 3 | . . . . . 3 Slashing . | . . . . . . Piercing . | . . . . . . Sneak Attacks . | . . . . . . Combat Hostiles . | . . . . . . Follow-up Attacks . | . . . . . . Damage Inflicted 1785 | . 573 . . 126 1086 Guns 1713 | . 573 . . 126 1014 Cannons . | . . . . . . Explosions . | . . . . . . Melee 72 | . . . . . 72 Ramming . | . . . . . . Kinetic 1713 | . 573 . . 126 1014 Thermal . | . . . . . . Explosive . | . . . . . . Electromagnetic . | . . . . . . Impact 72 | . . . . . 72 Slashing . | . . . . . . Piercing . | . . . . . . Highest Corruption . | . . . . . . Average Corruption . | . . . . . . Corruption Purged . | . . . . . . Corruption Blocked . | . . . . . . Overload Shots . | . . . . . . Overflow Damage . | . . . . . . Projectiles . | . . . . . . Explosions . | . . . . . . Melee . | . . . . . . Knockbacks 1 | . . . . . 1 Impact 1 | . . . . . 1 Kinetic . | . . . . . . Secondary . | . . . . . . Self-Inflicted Damage . | . . . . . . Shots . | . . . . . . Rammed . | . . . . . . Targets Rammed . | . . . . . . Kicked . | . . . . . . Crushed . | . . . . . . Highest Temperature 30 | . 11 . . 20 30 Average Temperature 9 | . 4 . . 11 12 Received Heat Transfer 1410 | . 219 . . 75 1116 Siege Activations . | . . . . . . Martial Activations . | . . . . . . Shielding Activations . | . . . . . . Robots Disrupted . | . . . . . . Combat Hostiles . | . . . . . . Robots Corrupted . | . . . . . . Combat Hostiles . | . . . . . . Parts Fried . | . . . . . . Impact Corruptions . | . . . . . . Robots Melted . | . . . . . . Combat Hostiles . | . . . . . . Parts Melted . | . . . . . . Heat Transferred . | . . . . . . Parts Sabotaged . | . . . . . . Parts Stolen . | . . . . . . Parts Stripped . | . . . . . . Power Chain Reactions . | . . . . . . Alert | -11 -10 -10 -10 -9 -8 ------- Run | Yrd Mat Min Exi Min Mat Maximum Alert Level . | . . . . . . Low Security (%) 100 | 100 100 100 . 100 100 Level 1 . | . . . . . . Level 2 . | . . . . . . Level 3 . | . . . . . . Level 4 . | . . . . . . Level 5 . | . . . . . . High Security . | . . . . . . Max Security . | . . . . . . Peak Influence 140 | . 81 21 . 40 140 Initial 21 | . . 21 . . 11 Average 36 | . 37 8 . 10 46 Influence Increases 755 | . 318 . . 50 387 Destroy 0b10 Robot/C 600 | . 240 . . 40 320 Destroy 0b10 Robot/NC 10 | . 5 . . . 5 Destroy Leader 122 | . 50 . . 10 62 Successful Hack 6 | . 6 . . . . Destroy Structure 2 | . 2 . . . . Lose Combat Pursuer 15 | . 15 . . . . Influence Decreases 755 | . 264 54 . 20 417 Entered New Map 52 | . . 33 . . 19 Time Decay 547 | . 254 21 . 20 252 Lost Part 156 | . 10 . . . 146 Squads Dispatched 7 | . 4 . . . 3 Investigation 2 | . 2 . . . . Extermination . | . . . . . . Reinforcement 5 | . 2 . . . 3 Assault . | . . . . . . Garrison . | . . . . . . Intercept . | . . . . . . Searches Triggered . | . . . . . . Construction Impeded . | . . . . . . Haulers Reinforced . | . . . . . . Active Scanning Responses . | . . . . . . Cargo Convoy Interrupts . | . . . . . . Stealth | -11 -10 -10 -10 -9 -8 --------- Run | Yrd Mat Min Exi Min Mat Distress Signals 5 | . 2 . . . 3 Communications Jammed . | . . . . . . Distress Signals . | . . . . . . Times Spotted 44 | . 15 . . 2 27 Peak Tracking Total 7 | . 4 . . 2 7 Tactical Retreats 1 | . 1 . . . . Traps | -11 -10 -10 -10 -9 -8 ------- Run | Yrd Mat Min Exi Min Mat Traps Triggered 2 | . 2 . . . . Indirectly . | . . . . . . Trap Hack Attempts . | . . . . . . Triggered . | . . . . . . Disarmed . | . . . . . . Reprogrammed . | . . . . . . Reused . | . . . . . . Traps Extracted . | . . . . . . Installed . | . . . . . . Triggered . | . . . . . . Machines | -11 -10 -10 -10 -9 -8 ---------- Run | Yrd Mat Min Exi Min Mat Machines Disabled . | . . . . . . Max in Single Turn . | . . . . . . Machines Repaired . | . . . . . . Machines Dismantled . | . . . . . . Machines Sabotaged . | . . . . . . Overloaded Fab Kills . | . . . . . . Hacking | -11 -10 -10 -10 -9 -8 --------- Run | Yrd Mat Min Exi Min Mat Machines Accessed 4 | . 3 . . . 1 Terminals 4 | . 3 . . . 1 Fabricators . | . . . . . . Repair Stations . | . . . . . . Recycling Units . | . . . . . . Scanalyzers . | . . . . . . Garrison Access . | . . . . . . Total Hacks 8 | . 6 . . . 2 Successful 1 | . 1 . . . . Failed 7 | . 5 . . . 2 Catastrophic 3 | . 1 . . . 2 Database Lockouts . | . . . . . . Manual 7 | . 5 . . . 2 Terminals 8 | . 6 . . . 2 Fabricators . | . . . . . . Repair Stations . | . . . . . . Recycling Units . | . . . . . . Scanalyzers . | . . . . . . Garrison Access . | . . . . . . Terminal Hacks 1 | . 1 . . . . Robot Analysis 1 | . 1 . . . . Fabricator Hacks . | . . . . . . Repair Station Hacks . | . . . . . . Recycling Unit Hacks . | . . . . . . Scanalyzer . | . . . . . . Garrison Access Hacks . | . . . . . . Unauthorized Hacks . | . . . . . . Terminals . | . . . . . . Fabricators . | . . . . . . Repair Stations . | . . . . . . Recycling Units . | . . . . . . Scanalyzers . | . . . . . . Garrison Access . | . . . . . . Data Cores Recovered . | . . . . . . Used . | . . . . . . Hacking Detections 3 | . 2 . . . 1 Full Trace Events 1 | . 1 . . . . Feedback Events . | . . . . . . Feedback Blocked . | . . . . . . Robot Schematics Acquired . | . . . . . . Robots Built . | . . . . . . Authchips . | . . . . . . Time . | . . . . . . Total Robot Build Rating . | . . . . . . Part Schematics Acquired . | . . . . . . Parts Built . | . . . . . . Authchips . | . . . . . . Time . | . . . . . . Total Part Build Rating . | . . . . . . Part Studies Acquired . | . . . . . . Parts Repaired . | . . . . . . Time . | . . . . . . Parts Recycled . | . . . . . . Recycled Matter . | . . . . . . Retrieved Matter . | . . . . . . Retrieved Components . | . . . . . . Parts Scanalyzed . | . . . . . . Part Schematics Acquired . | . . . . . . Parts Damaged . | . . . . . . Bothacking | -11 -10 -10 -10 -9 -8 ------------ Run | Yrd Mat Min Exi Min Mat Used RIF Installer . | . . . . . . Robots Hacked . | . . . . . . Non-combat . | . . . . . . Combat . | . . . . . . Robot Hacks Applied . | . . . . . . Relay Couplers Released . | . . . . . . Fabnet Peak Effective % . | . . . . . . Robots Rewired . | . . . . . . Allies Hacked . | . . . . . . Hacks Repelled . | . . . . . . Allies | -11 -10 -10 -10 -9 -8 -------- Run | Yrd Mat Min Exi Min Mat Total Allies . | . . . . . . Largest Group . | . . . . . . Highest-Rated Group . | . . . . . . Highest-Rated Ally . | . . . . . . Total Orders . | . . . . . . Ally Attacks . | . . . . . . Total Damage . | . . . . . . Kills . | . . . . . . Allies Corrupted . | . . . . . . Allies Melted . | . . . . . . Intel | -11 -10 -10 -10 -9 -8 ------- Run | Yrd Mat Min Exi Min Mat Active Infowar (turns) . | . . . . . . Robot Analysis Total 1 | . 1 . . . . Derelict Logs Recovered . | . . . . . . Drone Launches . | . . . . . . Drone Recoveries . | . . . . . . Exploration | -11 -10 -10 -10 -9 -8 ------------- Run | Yrd Mat Min Exi Min Mat Turns Passed 1663 | 71 650 77 47 92 726 Spaces Moved 801 | 43 316 49 30 40 323 Core 8 | 8 . . . . . Treads 771 | 35 316 49 30 40 301 Legs 22 | . . . . . 22 Wheels . | . . . . . . Hover . | . . . . . . Flight . | . . . . . . Fastest Speed 50 | 50 160 160 160 160 120 Average Speed 158 | 140 160 160 160 160 157 Slowest Speed 190 | 160 160 160 160 160 190 Overloaded Moves . | . . . . . . Propulsion Burnouts . | . . . . . . Robots Hopped . | . . . . . . Potential Cave-ins . | . . . . . . Cave-ins Triggered . | . . . . . . Exploration Rate (%) 24 | 4 77 17 8 14 26 Regions Visited 5 Branch Regions 3 Pre-discovered Areas . | . . . . . . Known Exits Taken . | . . . . . . Unknown Exits Taken 5 | 1 1 1 1 1 . Scrap Searched . | . . . . . . Spaces Dug . | . . . . . . Terrain Destroyed . | . . . . . . Melee . | . . . . . . Projectile . | . . . . . . AOE . | . . . . . . Terrain Rammed . | . . . . . . Walls Destroyed . | . . . . . . Machines Disabled . | . . . . . . Actions | -11 -10 -10 -10 -9 -8 --------- Run | Yrd Mat Min Exi Min Mat Total 1000 | 51 394 48 29 52 426 Wait 39 | . 30 . . 2 7 Move 796 | 42 315 48 29 39 323 Hop . | . . . . . . Pick Up 24 | 3 11 . . 1 9 Fast Attach 14 | 6 1 . . . 7 Attach 18 | . 1 . . 2 15 Detach . | . . . . . . Swap 3 | . 2 . . . 1 Drop 3 | . 1 . . . 2 Fire 100 | . 33 . . 8 59 Melee 3 | . . . . . 3 Ram . | . . . . . . Kick . | . . . . . . Crush . | . . . . . . Escape Stasis . | . . . . . . Rewire . | . . . . . . Trap . | . . . . . . Miscellaneous . | . . . . . . Route ------- -11/Scrapyard -10/Materials (discovered 4 exits: [*Mat x2] / [*Min x2]) -10/Mines -10/Exiles -9/Mines -8/Materials History --------- Turn | Location | Event 6 | -11/Scrapyard | Discovered new exit (range 16) 72 | -11/Scrapyard | Entered Materials 213 | -10/Materials | Discovered new exit (range 12) 301 | -10/Materials | Build established: Mutant 420 | -10/Materials | Discovered new exit (range 16) 629 | -10/Materials | Discovered new exit (range 3) 631 | -10/Materials | Discovered new exit (range 14) 722 | -10/Materials | Entered Mines 793 | -10/Mines | Deemed a non-threat by the Exiles lab entrance 793 | -10/Mines | Discovered new exit (range 5) 799 | -10/Mines | Entered Exiles 823 | -10/Exiles | Discovered new exit (range 15) 846 | -10/Exiles | Entered Mines 853 | -9/Mines | Met a Derelict bent on vengeance 883 | -9/Mines | Discovered new exit (range 11) 938 | -9/Mines | Entered Materials 938 | -8/Materials | Evolved 4 slots: Propulsion x2, Utility x2 1185 | -8/Materials | Lost 7 parts (1p3n3w) 1477 | -8/Materials | Build established: Scavenger-Mutant 1616 | -8/Materials | Core integrity fell below 50% 1631 | -8/Materials | Core integrity fell below 20% 1664 | -8/Materials | Destroyed by X-62 Marksman with Gauss Rifle Last Messages --------------- 01631_ K-01 Serf collects debris. 01632_ X-62 Marksman knocked back. 01633_ Slug penetrates Wall. 01633_ Critical hit (Burn: +37). 01635_ K-01 Serf collects debris. 01635_ Armor Integrity Analyzer destroyed. 01636_ Penetrated by Slug. 01636_ Acquired Imp. Carbon-fiber Leg. 01639_ Slug penetrates Wall. 01639_ K-01 Serf collects debris. 01640_ Acquired Lgt. Nuclear Core. 01642_ Penetrated by Slug. 01642_ K-01 Serf collects debris. 01646_ W-25 Informer suffers critical hit (Destroy). 01647_ K-01 Serf collects debris. 01654_ Penetrated by Slug. 01657_ Aluminum Leg destroyed. 01658_ M-13 Machinist fits Backup Propulsion I on W-25 Informer. Map ----- +----------------------------------------------------+ | ?????????????????????????????????????????????????? | | ?????????????????????????????????????????????????? | | ?????????????????????????????????????????????????? | | ?????????????????????????????????????????????????? | | ?????????????????????????????????????????????????? | | ?????????????????????????????????????????????????? | | ?????????????????????????????????????????????????? | | ?????????????????????????????????????????????????? | | ?????????????????????????????????????????????????? | | ???????????????????????????????????????????????### | | ??????????????????#???????????????????????????## ! | | ??????????????????# ??????????????????????????# | | ??????????????????# ??????????##########???????# ! | | ??????????????????# ??????????# T #???????# ! | | ??????????????????# ??????????# #???????# | | ??????????????????# ?????????# #???????# | | ??????????????????# ?????????# #???????# | | ?????????######+### ?????????# #???????# | | ????????? ?????????# """"" #???????##+ | | ????????? k ????????# """"" #????????# | | ???????? ! !!=????????# """"" #????????# | | ???????? !![????????# #????????# | | ??????? !=%#############+############# | | ??????? =!%* t | | ??????????"" !g [! | | ??????????"" w *% x@ r | | ??????????#####" "# ############ ########### | | ??????????????#"??# ???????????# #?????????# | | ??????????????????# ???????????# #?????????# | | ??????????????????# ???????????# #?????????# | | ??????????????????# ????????????# #?????????# | | ??????????????????# ????????????# #?????????# | | ??????????????????# ????????????# #?????????# | | ??????????????????# ????????????# #?????????# | | ??????????????????# ?????????????# #?????????# | | ?????????????????? ?????????????# % #?????????# | | ?????????????????? ???????####### ########### | | ?????????????????? H??????# % % =! | | ?????????????????? ????????# *= [ | | ???????????????????????????# [ ! | | ???????????????????????????#^ ^###+############### | | ???????????????????????????# ?? ?????????#] | | ???????????????????????????# ??# ?????????# "" | | ???????????????????????????#???# ?????????# "" | | ???????????????????????????????# """?????????#[ "" | | ???????????????????????????????# """?????????# | | ???????????????????????????????# """?????????##### | | ???????????????????????????????# ????????????????? | | ?????????????????????????????????????????????????? | | ?????????????????????????????????????????????????? | +----------------------------------------------------+ Best States ------------- Heat Dissipation 45 Energy Generation 14 Energy Capacity 265 Matter Stores 300 Matter Capacity 300 Sight Range 16 Terrain Scan Density 10 Armor Coverage 150 Evasion (%) 55 Targeting Accuracy 5 Core Analysis 6 Armor Integrity Analysis 30 Recoil Reduction 4 Item Schematics ----------------- None Robot Schematics ------------------ None Fabricated ------------ Nothing Repaired ---------- Nothing Studied --------- None Alien Tech Used ----------------- None Achievements -------------- None Challenges ------------ None Game ------ Seed BlinkChargeDetonator Manual? 0 Play Time 00:13:22 Cumulative 120.7 hours Start 2026.07.28 @ 14:16:07 End 2026.07.28 @ 14:27:21 Sessions 1 Manual Loads 0 Difficulty Rogue Special Mode None Game No. 134 Rogue 80 Adventurer 54 Explorer 0 Win Type - Total 3 Types 2/0/0/1/0/0/0/0/0/0 Lore% 51 Gallery% 50 Achievement% 45 Wizard Run 0 Options --------- Layout 1 ASCII 0 Keyboard 0 Movement Mouse Keybinds 1 Fullscreen 1 Font 32/Tamsyn Map View 50x35 Zoom Use 0% Tactical HUD 1 Map Filters NONE Filters NONE Steam 1 RUN: f559db9e-f7bb-45a5-a8d9-7b19b05ba648